bitfinex/quotes_ETHUSD_20251126
["timestamp","ask_amount","ask_price","bid_price","bid_amount"]
[1764140811900,9.66533542,2947.0,2946.1,0.1807]
[1764140811901,0.451,2946.4,2944.7,0.1807]
[1764140812054,6.03921998,2945.1,2944.8,0.4935]
[1764140812263,6.25421998,2945.1,2944.8,0.4935]
[1764140812573,2.85874954,2945.1,2945.0,0.4718]
[1764140812772,0.215,2945.1,2945.0,0.4718]
[1764140813084,0.215,2945.1,2945.0,0.9653]
[1764140813489,3.61047044,2945.1,2945.0,0.4718]
[1764140813698,3.61047044,2945.1,2945.0,0.9653]
[1764140814055,3.61047044,2945.1,2945.0,0.4718]
[1764140814254,0.09973709,2945.0,2944.7,0.1807]
[1764140814488,2.64374954,2944.9,2944.8,0.4935]
[1764140814986,2.64374954,2944.9,2944.8,0.9653]
[1764140815682,2.64374954,2944.9,2944.8,0.4718]
[1764140816284,6.03945058,2944.9,2944.8,0.4718]
[1764140817190,0.09973709,2944.7,2944.3,0.4935]
[1764140817365,2.64374954,2944.4,2944.3,0.4935]
[1764140817571,2.64374954,2944.4,2944.2,0.4935]
[1764140817770,2.64374954,2944.4,2944.3,0.4718]
[1764140817966,2.64374954,2944.4,2943.9,0.1931]
[1764140817967,0.215,2944.4,2943.9,0.1931]
[1764140818171,2.85874954,2944.4,2944.3,0.4718]
[1764140818377,2.85874954,2944.4,2943.9,0.6866]
[1764140818378,6.25502721,2944.4,2943.9,0.6866]
[1764140818688,6.25502721,2944.4,2943.4,0.4935]
[1764140818689,2.64374954,2944.1,2943.4,0.4935]
[1764140818887,0.215,2944.0,2943.4,0.4935]
[1764140819194,0.215,2944.0,2943.9,0.4718]
[1764140819409,2.85874954,2944.0,2943.9,0.4718]
[1764140819959,3.19214954,2944.0,2943.3,0.4935]
[1764140820159,2.64374954,2943.5,2943.3,0.4935]
[1764140820603,2.64374954,2943.5,2943.4,0.4718]
[1764140820968,2.64374954,2943.5,2943.4,0.9653]
[1764140822183,0.1918,2946.9,2943.4,0.9653]
[1764140822184,0.72559411,2944.6,2943.4,0.9653]
[1764140822386,0.5312195,2944.5,2943.5,7.2946054]
[1764140822711,0.215,2944.5,2943.5,8.28158734]
[1764140822877,0.72559411,2944.6,2944.4,0.467]
[1764140823077,0.72559411,2944.6,2944.5,0.467]
[1764140823276,0.94059411,2944.6,2944.5,0.467]
[1764140823809,0.94059411,2944.6,2944.5,0.933]
[1764140824222,0.72559411,2944.9,2944.5,0.933]
[1764140824507,0.215,2944.6,2944.4,0.1824]
[1764140824695,2.64374954,2944.5,2944.4,0.1824]
[1764140825004,3.61108722,2944.6,2944.5,0.933]
[1764140825005,0.215,2944.6,2944.5,0.933]
[1764140825599,0.215,2944.9,2944.5,0.933]
[1764140825909,0.215,2945.1,2944.6,0.466]
[1764140826104,6.78955766,2945.7,2944.6,0.466]
[1764140826419,6.79001866,2945.5,2944.6,0.466]
[1764140826786,0.09973709,2945.3,2944.6,0.466]
[1764140827110,0.215,2945.2,2944.7,3.81]
[1764140827609,0.215,2945.2,2945.1,0.6494]
[1764140827974,0.72559411,2945.4,2945.1,0.6494]
[1764140828180,0.72559411,2945.4,2945.3,0.467]
[1764140828398,4.33571871,2945.4,2945.3,0.467]
[1764140829713,7.73084331,2945.4,2945.1,0.1824]
[1764140829915,0.215,2945.3,2945.1,0.1824]
[1764140830117,0.72559411,2945.9,2945.3,0.467]
[1764140830280,0.72559411,2945.6,2945.3,0.467]
[1764140830608,0.72559411,2945.6,2945.3,0.466]
[1764140831207,0.72559411,2945.6,2945.5,0.467]
[1764140831512,0.94059411,2945.6,2945.5,0.467]
[1764140832214,1.57273124,2945.6,2945.1,0.1824]
[1764140832403,0.72559411,2945.4,2945.1,0.6484]
[1764140832782,0.72559411,2945.4,2945.3,0.467]
[1764140832990,0.72559411,2945.5,2945.3,0.467]
[1764140833403,0.72559411,2945.5,2945.4,0.467]
[1764140834402,4.12060344,2945.5,2945.4,0.467]
[1764140834801,0.72559411,2945.4,2944.8,3.81]
[1764140834985,0.0196,2945.3,2944.8,3.81]
[1764140835185,0.0196,2945.3,2944.9,3.81]
[1764140835634,0.72559411,2945.4,2945.2,0.6778]
[1764140835936,0.405504,2945.9,2945.3,0.4828]
[1764140836110,0.72559411,2945.7,2945.4,0.4828]
[1764140836310,0.31663556,2945.6,2945.4,0.4828]
[1764140836704,4.12060344,2945.5,2945.4,0.4828]
[1764140837613,0.72559411,2945.4,2945.2,0.195]
[1764140837814,0.215,2945.3,2945.2,0.195]
[1764140838037,0.215,2945.3,2945.1,0.4857]
[1764140838223,0.215,2945.3,2945.2,0.4828]
[1764140839147,4.33583398,2945.3,2945.2,0.4828]
[1764140839439,4.66993398,2945.3,2944.9,4.2957]
[1764140841115,4.66993398,2945.3,2945.0,3.81]
[1764140841306,8.06517385,2945.3,2945.0,3.81]
[1764140841507,0.0033,2945.1,2945.0,3.81]
[1764140843038,0.0033,2945.1,2944.7,3.81]
[1764140843244,3.39558573,2945.0,2944.8,3.81]
[1764140843431,0.215,2944.9,2944.8,3.81]
[1764140843610,0.5458,2944.9,2944.8,3.81]
[1764140844653,0.215,2944.9,2944.8,4.2928]
[1764140845240,3.94480104,2944.9,2944.8,3.81]
[1764140845942,0.5491,2944.9,2944.8,3.81]
[1764140846309,3.94480104,2944.9,2944.8,3.81]
[1764140847538,0.72559411,2944.8,2944.7,0.001]
[1764140847943,1.05819411,2944.8,2944.7,0.001]
[1764140848833,0.215,2944.8,2944.7,0.9695]
[1764140849547,4.33641046,2944.8,2944.7,0.001]
[1764140849841,0.94059411,2944.8,2944.7,0.4838]
[1764140850229,2.83613533,2945.3,2944.7,0.9695]
[1764140850230,3.39531504,2945.3,2944.7,0.9695]
[1764140850410,2.64683533,2945.8,2945.2,0.6778]
[1764140850614,8.05377824,2945.7,2945.4,0.4828]
[1764140850813,1.04321183,2945.6,2945.4,0.4828]
[1764140851041,0.72559411,2945.6,2945.4,0.4828]
[1764140851338,0.72559411,2945.6,2945.5,0.4828]
[1764140851544,4.43829799,2945.6,2945.5,0.4828]
[1764140851843,0.215,2945.7,2945.5,0.9685]
[1764140852040,0.215,2945.7,2945.6,0.4828]
[1764140852244,0.215,2945.7,2945.6,0.9685]
[1764140852420,3.39433083,2946.1,2945.6,0.9685]
[1764140852623,0.53288067,2946.0,2945.8,0.4828]
[1764140852933,0.31788067,2945.9,2945.7,0.4857]
[1764140853339,0.31788067,2945.9,2945.8,0.4828]
[1764140853642,1.04347478,2945.9,2945.8,0.4828]
[1764140853842,1.04347478,2945.9,2945.8,0.9685]
[1764140854347,0.72559411,2945.9,2945.8,0.9685]
[1764140854548,3.60945054,2946.0,2945.8,0.9685]
[1764140854725,4.33504465,2946.0,2945.9,0.9685]
[1764140854926,4.65289016,2946.0,2945.9,0.9685]
[1764140855237,1.25843962,2946.0,2945.9,0.9685]
[1764140855558,4.65287274,2946.0,2945.9,0.9685]
[1764140855841,1.25843962,2946.0,2945.9,0.9685]
[1764140856040,4.65287274,2946.0,2945.9,0.9685]
[1764140856244,4.65287274,2946.0,2945.9,0.4828]
[1764140857845,1.25843962,2946.0,2945.9,0.4828]
[1764140858058,4.65287274,2946.0,2945.9,0.4828]
[1764140858582,0.94059411,2946.0,2945.9,0.9685]
[1764140858852,4.33502723,2946.0,2945.9,0.9685]
[1764140859156,0.72559411,2946.0,2945.9,0.9685]
[1764140859345,0.94059411,2946.0,2945.9,0.9685]
[1764140859540,4.33502723,2946.0,2945.9,0.4828]
[1764140860260,10.93406316,2946.0,2945.6,3.81]
[1764140860549,0.4768,2945.9,2945.6,3.81]
[1764140861653,10.40738299,2946.0,2945.6,3.81]
[1764140861857,4.43476432,2946.0,2945.6,3.81]
[1764140862053,7.82919744,2946.0,2945.6,3.81]
[1764140862353,4.43476432,2946.0,2945.6,4.2957]
[1764140862557,0.72559411,2946.0,2945.9,0.4828]
[1764140862757,4.33502723,2946.0,2945.9,0.4828]
[1764140862929,4.33502723,2946.0,2945.9,0.9685]
[1764140863126,4.33502723,2946.0,2945.6,3.81]
[1764140863459,7.72946035,2946.0,2945.6,3.81]
[1764140864056,4.33502723,2946.0,2945.6,3.81]
[1764140864939,4.33502723,2946.0,2945.7,3.81]
[1764140867854,7.72946035,2946.0,2945.7,3.81]
[1764140868052,4.33502723,2946.0,2945.7,3.81]
[1764140868252,8.22156035,2946.0,2945.7,3.81]
[1764140868553,8.00656035,2946.0,2945.7,3.81]
[1764140868763,0.215,2945.9,2945.7,3.81]
[1764140869466,3.39466358,2945.8,2945.7,3.81]
[1764140869677,3.86406358,2945.8,2945.7,3.81]
[1764140870484,4.35616358,2945.8,2945.7,3.81]
[1764140870674,3.86406358,2945.8,2945.7,3.81]
[1764140871585,4.35616358,2945.8,2945.7,3.81]
[1764140871788,4.12004953,2946.0,2945.7,4.7236]
[1764140872090,0.215,2945.8,2945.7,3.81]
[1764140872665,3.60966358,2945.8,2945.7,4.2668]
[1764140872856,0.215,2945.8,2945.7,4.2668]
[1764140874345,0.215,2945.8,2945.7,4.7236]
[1764140874892,0.215,2945.9,2945.7,4.7236]
[1764140875179,0.215,2945.9,2945.7,4.2668]
[1764140875345,0.215,2945.9,2945.8,0.4568]
[1764140875954,0.8791,2945.9,2945.7,3.81]
[1764140876181,0.4694,2945.8,2945.7,3.81]
[1764140877090,3.86406358,2945.8,2945.7,3.81]
[1764140877591,3.86406358,2945.8,2945.6,3.81]
[1764140877788,3.39466358,2945.8,2945.6,3.81]
[1764140877976,0.9615,2945.7,2945.6,3.81]
[1764140878972,4.35627883,2945.7,2945.6,3.81]
[1764140880394,4.67476944,2945.7,2945.6,3.811]
[1764140880906,8.81206871,2945.7,2945.6,0.001]
[1764140881205,9.72439394,2945.7,2945.6,0.001]
[1764140881593,1.77786724,2945.7,2945.6,0.4578]
[1764140881792,1.99286724,2945.7,2945.6,0.4578]
[1764140882004,5.38764607,2945.7,2945.6,0.4578]
[1764140882197,1.99286724,2945.7,2945.6,0.4578]
[1764140882392,1.99286724,2945.7,2945.6,0.001]
[1764140882393,5.38764607,2945.7,2945.6,0.001]
[1764140882900,5.85464607,2945.7,2945.6,0.001]
[1764140884805,6.34984607,2945.7,2945.6,0.001]
[1764140885213,6.44958316,2945.7,2945.6,0.001]
[1764140885704,5.72398905,2945.7,2945.6,0.001]
[1764140886212,5.62425196,2945.7,2945.6,0.001]
[1764140886407,5.72398905,2945.7,2945.6,0.001]
[1764140886704,4.91405196,2945.7,2945.6,0.001]
[1764140886875,5.12905196,2945.7,2945.6,0.001]
[1764140887076,5.62425196,2945.7,2945.6,0.001]
[1764140887313,4.66205196,2945.7,2945.6,0.001]
[1764140887909,5.12905196,2945.7,2945.6,0.001]
[1764140888891,5.72398905,2945.7,2945.6,0.001]
[1764140889092,5.62425196,2945.7,2945.6,0.001]
[1764140892820,6.13484607,2945.7,2945.6,0.001]
[1764140893006,6.34984607,2945.7,2945.6,0.001]
[1764140896099,1.77786724,2945.7,2945.6,0.9146]
[1764140896300,4.65386355,2945.7,2945.6,0.9146]
[1764140896817,0.215,2945.7,2945.6,0.9146]
[1764140897019,0.6849,2945.7,2945.6,0.001]
[1764140897394,0.215,2945.7,2945.6,0.4578]
[1764140897594,0.215,2945.7,2945.6,4.2678]
[1764140898634,3.60977883,2945.7,2945.6,4.2678]
[1764140899353,3.92786902,2945.7,2945.6,4.2678]
[1764140900434,3.92786902,2945.7,2945.6,0.4578]
[1764140900930,3.92786902,2945.7,2945.6,0.001]
[1764140901431,4.87326902,2945.7,2945.6,0.001]
[1764140901924,4.97300611,2945.7,2945.6,0.001]
[1764140902732,5.70607721,2945.7,2945.6,0.001]
[1764140902914,6.43167132,2945.7,2945.6,0.001]
[1764140904238,5.17153423,2945.7,2945.6,0.001]
[1764140904405,1.2586843,2945.7,2945.6,0.9146]
[1764140904608,4.65346313,2945.7,2945.6,0.4578]
[1764140905332,4.43846313,2945.7,2945.6,0.4578]
[1764140905534,4.65346313,2945.7,2945.6,0.4578]
[1764140905839,5.12336313,2945.7,2945.6,0.001]
[1764140906522,4.65346313,2945.7,2945.6,0.001]
[1764140906705,5.85668027,2945.7,2945.6,0.001]
[1764140907406,5.38678027,2945.7,2945.6,0.001]
[1764140907934,5.85668027,2945.7,2945.6,0.001]
[1764140908337,6.33218027,2945.7,2945.6,0.001]
[1764140909444,6.43191736,2945.7,2945.6,0.001]
[1764140912742,9.07792333,2945.7,2945.6,0.001]
[1764140913864,8.60242333,2945.7,2945.6,0.001]
[1764140914456,9.07792333,2945.7,2945.6,0.001]
[1764140918750,9.48342733,2945.7,2945.6,0.001]
[1764140921572,9.48342733,2945.7,2945.6,0.4578]
[1764140921573,5.17178027,2945.7,2945.6,0.4578]
[1764140921775,5.38678027,2945.7,2945.6,0.4578]
[1764140922068,4.44618616,2945.7,2945.6,0.4578]
[1764140922274,4.66118616,2945.7,2945.6,0.9146]
[1764140922440,4.66118616,2945.7,2945.6,0.4578]
[1764140922870,4.66139175,2945.7,2945.6,0.4578]
[1764140924350,4.66139175,2945.7,2945.6,4.2678]
[1764140924574,8.52859183,2945.7,2945.6,0.001]
[1764140924753,10.84835496,2945.7,2945.6,0.001]
[1764140925067,10.33049607,2945.7,2945.6,0.001]
[1764140925438,10.33049607,2945.7,2945.5,0.001]
[1764140925439,5.06954789,2945.6,2945.5,0.001]
[1764140925768,7.71373615,2945.6,2945.5,0.001]
[1764140927054,9.35204816,2945.6,2945.5,0.001]
[1764140930984,10.26821239,2945.6,2945.5,0.001]
[1764140932059,9.7146753,2945.6,2945.5,0.001]
[1764140932257,9.81441239,2945.6,2945.5,0.001]
[1764140933049,10.26821239,2945.6,2945.5,0.001]
[1764140933792,9.3547753,2945.6,2945.5,0.001]
[1764140934102,9.95011239,2945.6,2945.5,0.001]
[1764140934577,9.95211239,2945.6,2945.5,0.001]
[1764140935502,9.03594816,2945.6,2945.5,0.001]
[1764140936001,8.54034816,2945.6,2945.5,0.001]
[1764140936206,9.03594816,2945.6,2945.5,0.001]
[1764140937206,9.03600336,2945.6,2945.5,0.001]
[1764140937370,9.95216759,2945.6,2945.5,0.001]
[1764140938901,5.1741563,2945.6,2945.5,4.721]
[1764140939100,1.26866812,2945.6,2945.5,4.721]
[1764140939501,5.3891563,2945.6,2945.5,4.721]
[1764140940276,1.99426223,2945.6,2945.5,4.721]
[1764140940476,4.65563357,2945.6,2945.5,4.721]
[1764140941190,1.0457395,2945.6,2945.5,4.721]
[1764140941396,1.2607395,2945.6,2945.5,4.721]
[1764140942215,4.65563357,2945.6,2945.5,4.721]
[1764140942879,4.65563357,2945.6,2945.5,3.811]
[1764140943282,1.2607395,2945.6,2945.5,4.2678]
[1764140943494,1.2607395,2945.6,2945.5,4.7246]
[1764140943915,1.0457395,2945.6,2945.5,4.7246]
[1764140944117,1.2607395,2945.6,2945.5,4.7246]
[1764140944329,1.0457395,2945.6,2945.5,4.7246]
[1764140944498,1.2607395,2945.6,2945.5,4.7246]
[1764140945314,0.32014539,2945.6,2945.5,4.7246]
[1764140945507,0.53514539,2945.6,2945.5,4.7246]
[1764140945688,3.93003946,2945.6,2945.5,4.2678]
[1764140946999,0.53514539,2945.6,2945.5,4.2678]
[1764140948115,3.93003946,2945.6,2945.5,4.2678]
[1764140948324,0.53514539,2945.6,2945.5,4.2678]
[1764140948827,0.53514539,2945.6,2945.5,4.7246]
[1764140949223,3.93003946,2945.6,2945.5,4.2678]
[1764140950928,0.53514539,2945.6,2945.5,4.2678]
[1764140951730,3.93003946,2945.6,2945.5,4.2678]
[1764140953132,0.32014539,2945.6,2945.5,4.2678]
[1764140953298,0.53514539,2945.6,2945.5,4.2678]
[1764140954043,0.32014539,2945.6,2945.5,4.2678]
[1764140954200,0.53514539,2945.6,2945.5,4.7246]
[1764140954928,0.53514539,2945.6,2945.5,4.2678]
[1764140955130,0.53514539,2945.6,2945.5,3.811]
[1764140955327,0.53514539,2945.6,2945.5,4.2678]
[1764140955532,0.53514539,2945.6,2945.5,8.11960933]
[1764140955533,0.002,2945.6,2945.5,8.11960933]
[1764140955754,0.002,2945.6,2945.5,10.7656153]
[1764140955957,0.002,2945.6,2945.5,9.13977633]
[1764140957657,0.002,2945.9,2945.5,12.53478566]
[1764140957859,0.002,2945.9,2945.8,0.4568]
[1764140958358,0.002,2945.9,2945.8,0.9136]
[1764140958554,0.002,2945.9,2945.8,1.1286]
[1764140958757,0.002,2946.2,2945.9,6.7890967]
[1764140958962,0.002,2946.5,2946.1,3.23370597]
[1764140959274,0.002,2946.8,2946.4,3.10280597]
[1764140959560,0.002,2946.8,2946.7,0.4568]
[1764140959952,0.002,2946.8,2946.7,0.9136]
[1764140960149,0.002,2946.8,2946.7,1.04957556]
[1764140960859,0.002,2946.8,2946.7,4.44320232]
[1764140964032,0.002,2946.8,2946.7,8.25320232]
[1764140970338,0.4592,2946.8,2946.7,3.81]
[1764140970557,0.9553,2946.8,2946.7,3.81]
[1764140973188,4.3488116,2946.8,2946.7,3.81]
[1764140975688,5.07440571,2946.8,2946.7,3.81]
[1764140979002,4.57830571,2946.8,2946.7,3.81]
[1764140979184,5.28940571,2946.8,2946.7,3.81]
[1764140981204,4.79330571,2946.8,2946.7,3.81]
[1764140981958,5.28940571,2946.8,2946.7,3.81]
[1764140983509,4.79330571,2946.8,2946.7,3.81]
[1764140983964,5.26660571,2946.8,2946.7,3.81]
[1764140984505,4.79330571,2946.8,2946.7,3.81]
[1764140985389,5.26660571,2946.8,2946.7,3.81]
[1764140992179,5.58439116,2946.8,2946.7,3.81]
[1764140998922,5.11109116,2946.8,2946.7,3.81]
[1764141000330,5.84458177,2946.8,2946.7,3.81]
[1764141001035,6.31788177,2946.8,2946.7,3.81]
[1764141001528,0.72559411,2946.7,2946.5,0.001]
[1764141001828,1.21502654,2946.6,2946.5,0.001]
[1764141001996,1.68832654,2946.6,2946.5,0.001]
[1764141002327,1.68832654,2946.6,2946.2,0.001]
[1764141002328,0.50524109,2946.3,2946.2,0.001]
[1764141002529,8.14848194,2946.3,2946.2,0.001]
[1764141002743,8.60018194,2946.3,2946.2,0.001]
[1764141003203,11.99426943,2946.3,2946.2,0.001]
[1764141003405,8.65669243,2946.3,2946.2,0.001]
[1764141003606,9.39091115,2946.3,2946.2,0.001]
[1764141004206,8.65669243,2946.3,2946.2,0.001]
[1764141004406,9.39106559,2946.3,2946.2,0.001]
[1764141005316,10.30665528,2946.3,2946.2,0.001]
[1764141006325,9.39106559,2946.3,2946.2,0.001]
[1764141006523,9.2913285,2946.3,2946.2,0.001]
[1764141007242,9.39106559,2946.3,2946.2,0.001]
[1764141008015,9.39106559,2946.3,2945.3,0.001]
[1764141008016,3.337577,2945.4,2944.9,0.001]
[1764141008219,7.21119649,2945.1,2944.9,0.001]
[1764141008430,7.2119815,2945.1,2944.9,0.001]
[1764141008636,11.21691527,2945.1,2944.9,0.001]
[1764141009310,10.08884241,2945.1,2944.9,0.001]
[1764141009517,9.83754296,2945.1,2944.9,0.001]
[1764141009848,8.35499635,2945.1,2944.9,0.001]
[1764141010042,7.80168632,2945.1,2944.9,0.001]
[1764141010217,8.25338632,2945.1,2944.9,0.001]
[1764141010556,5.67560203,2945.1,2944.9,0.001]
[1764141010945,5.35800564,2945.1,2944.9,0.001]
[1764141011722,4.90630564,2945.1,2944.9,0.001]
[1764141012051,5.29490564,2945.1,2944.9,0.001]
[1764141012459,5.74660564,2945.1,2944.9,0.001]
[1764141012825,3.39510825,2945.5,2945.0,0.9865]
[1764141013022,7.10495359,2945.5,2945.2,0.4999]
[1764141013225,7.55665359,2945.5,2945.0,0.001]
[1764141013831,7.10495359,2945.5,2945.0,0.469]
[1764141014132,0.72559411,2945.4,2945.0,0.469]
[1764141014455,0.4666,2946.2,2945.4,0.4712]
[1764141014633,0.215,2946.1,2945.5,0.4712]
[1764141015161,0.215,2946.1,2945.6,0.468]
[1764141015325,0.4422,2945.6,2945.2,0.468]
[1764141015530,0.215,2945.5,2945.2,0.468]
[1764141015935,0.215,2945.5,2945.4,0.4712]
[1764141016336,0.215,2945.5,2945.4,0.9392]
[1764141019587,0.97184109,2946.5,2945.4,4.33429953]
[1764141019809,3.6089723,2946.4,2945.6,0.4712]
[1764141019957,0.72559411,2946.3,2945.6,0.4712]
[1764141020163,0.72559411,2946.3,2945.7,0.468]
[1764141020402,6.78804985,2946.4,2946.2,0.6536]
[1764141020586,1.43669411,2946.3,2945.9,0.468]
[1764141020791,1.43669411,2946.3,2945.6,3.81]
[1764141020975,1.43669411,2946.3,2945.7,0.468]
[1764141021792,0.72559411,2946.3,2946.2,0.6536]
[1764141021995,0.94059411,2946.3,2946.2,0.6536]
[1764141022218,0.94059411,2946.3,2946.2,0.4712]
[1764141022377,1.43579411,2946.3,2945.8,0.1824]
[1764141022896,1.43579411,2946.3,2945.8,0.6504]
[1764141023316,1.43579411,2946.3,2945.9,0.468]
[1764141023669,3.3942027,2946.2,2945.8,3.9924]
[1764141024584,3.3942027,2946.2,2945.8,0.1824]
[1764141026506,0.215,2946.1,2945.8,0.1824]
[1764141026693,0.6816,2946.1,2945.6,0.468]
[1764141026898,0.4422,2945.7,2945.1,3.57887022]
[1764141027077,0.215,2945.6,2945.3,0.468]
[1764141027410,0.215,2945.5,2945.3,0.468]
[1764141027808,0.215,2945.5,2945.4,0.4712]
[1764141029204,0.215,2945.5,2945.1,3.57885914]
[1764141029411,0.215,2945.4,2945.1,4.04685914]
[1764141029889,0.215,2945.4,2945.3,0.4712]
[1764141030420,4.10625975,2945.4,2945.1,0.001]
[1764141030621,0.7111,2945.4,2945.1,0.001]
[1764141030773,0.215,2945.4,2945.3,0.4712]
[1764141032797,0.215,2945.4,2945.3,0.9392]
[1764141033605,0.215,2945.4,2945.3,0.4712]
[1764141033998,0.215,2945.4,2945.3,0.9392]
[1764141036726,3.39457192,2945.9,2945.3,0.9392]
[1764141036922,0.4666,2946.3,2945.8,0.4712]
[1764141037126,0.31716608,2946.2,2945.8,0.4712]
[1764141037315,0.002,2946.4,2945.4,4.31195124]
[1764141037316,0.002,2946.4,2945.9,0.468]
[1764141037627,0.002,2946.4,2946.0,3.81]
[1764141037826,0.215,2946.3,2946.0,4.278]
[1764141038227,0.215,2946.3,2946.2,0.4712]
[1764141041904,0.215,2946.3,2946.2,0.9392]
[1764141042134,0.215,2946.3,2946.2,0.4712]
[1764141043035,0.20549559,2946.3,2946.2,0.4712]
[1764141043557,0.002,2946.4,2946.2,0.4712]
[1764141043725,0.215,2946.3,2946.2,0.4712]
[1764141043920,0.002,2946.4,2946.2,0.4712]
[1764141044126,0.215,2946.3,2946.2,0.4712]
[1764141046558,0.002,2946.4,2946.2,0.4712]
[1764141046761,0.215,2946.3,2946.2,0.4712]
[1764141046972,0.215,2946.3,2945.4,3.61006244]
[1764141046973,0.6505,2946.3,2945.4,3.61006244]
[1764141047144,0.6505,2946.3,2945.5,0.493]
[1764141047728,0.002,2946.4,2946.2,0.4503]
[1764141048061,3.3959723,2946.4,2946.3,0.4503]
[1764141048357,0.217,2946.4,2946.3,0.4503]
[1764141048769,1.1185,2946.4,2945.7,3.8877467]
[1764141049157,1.1185,2946.4,2945.8,0.493]
[1764141050830,1.1185,2946.4,2945.8,3.88765443]
[1764141051070,4.51248975,2946.4,2945.8,3.88765443]
[1764141052072,4.51248975,2946.4,2945.8,0.493]
[1764141052368,0.4894,2946.3,2945.7,3.39472802]
[1764141053157,3.88353321,2946.3,2945.7,3.39472802]
[1764141053536,3.88353321,2946.3,2945.7,3.88772802]
[1764141054671,2.64473432,2946.1,2945.7,3.88772802]
[1764141054839,0.215,2946.0,2945.7,3.88772802]
[1764141055568,0.215,2946.0,2945.7,3.39472802]
[1764141055862,0.215,2946.0,2945.9,0.4503]
[1764141058071,4.51103312,2946.0,2945.9,3.81]
[1764141060669,4.51103312,2946.0,2945.7,3.81]
[1764141060670,8.00520333,2946.0,2945.7,3.81]
[1764141060870,2.64473432,2945.8,2945.7,3.81]
[1764141061070,3.05363432,2945.8,2945.7,3.81]
[1764141061247,3.54303432,2945.8,2945.7,3.81]
[1764141061855,6.9376979,2945.8,2945.7,3.81]
[1764141064581,6.4482979,2945.8,2945.7,3.81]
[1764141065246,6.9004979,2945.8,2945.7,3.81]
[1764141066087,10.29516148,2945.8,2945.6,0.001]
[1764141066249,0.91171503,2945.7,2945.6,0.001]
[1764141068079,4.30649386,2945.7,2945.6,0.001]
[1764141068257,3.75455677,2945.7,2945.6,0.001]
[1764141068473,4.20675677,2945.7,2945.6,0.001]
[1764141070051,3.96955677,2945.7,2945.6,0.001]
[1764141070676,2.64473432,2945.8,2945.6,0.4527]
[1764141070871,0.215,2945.7,2945.6,0.001]
[1764141071072,6.03945971,2945.8,2945.6,0.001]
[1764141071383,0.215,2945.7,2945.6,0.001]
[1764141071588,0.6664,2945.7,2945.6,0.001]
[1764141071751,1.1186,2945.7,2945.6,0.001]
[1764141072151,4.06117883,2945.7,2945.6,0.001]
[1764141072557,4.51337883,2945.7,2945.6,0.001]
[1764141072754,4.83110903,2945.7,2945.6,0.001]
[1764141076007,4.83110903,2945.7,2945.6,3.811]
[1764141076679,4.93084612,2945.7,2945.6,3.811]
[1764141077053,4.83110903,2945.7,2945.6,3.811]
[1764141078185,6.32682729,2945.7,2945.6,3.811]
[1764141081823,6.32682729,2945.7,2945.6,0.001]
[1764141090505,6.73233129,2945.7,2945.6,0.001]
[1764141090829,7.64808627,2945.7,2945.6,0.001]
[1764141091000,6.73433129,2945.7,2945.6,0.001]
[1764141091832,7.26040847,2945.7,2945.6,0.001]
[1764141092033,7.71960847,2945.7,2945.6,0.001]
[1764141093139,6.80293129,2945.7,2945.6,0.001]
[1764141095728,6.9390239,2945.7,2945.6,0.001]
[1764141096638,9.51964307,2945.7,2945.6,0.001]
[1764141100743,9.52026458,2945.7,2945.6,0.001]
[1764141101942,9.52026458,2945.7,2945.6,0.9642]
[1764141101943,7.75333088,2945.7,2945.6,0.9642]
[1764141102129,8.67021357,2945.7,2945.6,0.9642]
[1764141102335,8.88521357,2945.7,2945.6,0.4973]
[1764141102739,8.98495066,2945.7,2945.6,0.4973]
[1764141102915,8.98495066,2945.7,2945.6,0.001]
[1764141103632,8.76995066,2945.7,2945.6,0.001]
[1764141103950,8.98495066,2945.7,2945.6,0.4973]
[1764141104251,4.6621176,2945.7,2945.6,0.9667]
[1764141104547,6.2002488,2945.7,2945.6,0.001]
[1764141117061,5.7036488,2945.7,2945.6,0.001]
[1764141119340,5.4874488,2945.7,2945.6,0.451]
[1764141119752,5.9446488,2945.7,2945.6,0.001]
[1764141120243,5.38771171,2945.7,2945.6,0.9204]
[1764141120772,5.38771171,2945.7,2945.6,0.451]
[1764141121257,5.4874488,2945.7,2945.6,0.451]
[1764141121574,5.17271171,2945.7,2945.6,0.9204]
[1764141121762,5.38771171,2945.7,2945.6,0.9204]
[1764141124158,5.17271171,2945.7,2945.6,0.9204]
[1764141124362,5.38771171,2945.7,2945.6,0.9204]
[1764141126295,5.38771171,2945.7,2945.6,4.7304]
[1764141127157,5.17271171,2945.7,2945.6,4.7304]
[1764141127488,5.38771171,2945.7,2945.6,4.7304]
[1764141131290,5.38798061,2945.7,2945.6,4.7304]
[1764141131587,5.17298061,2945.7,2945.6,4.7594]
[1764141131791,5.38798061,2945.7,2945.6,4.7594]
[1764141137105,6.10138061,2945.7,2945.6,3.811]
[1764141137271,6.2011177,2945.7,2945.6,3.811]
[1764141137674,7.52350439,2945.7,2945.6,3.811]
[1764141138394,7.52350439,2945.7,2945.6,0.001]
[1764141139398,1.13109811,2945.6,2945.5,0.001]
[1764141139567,3.50771776,2945.6,2945.5,0.001]
[1764141141410,6.85381183,2945.6,2945.5,0.001]
[1764141141708,6.31683694,2945.6,2945.5,0.001]
[1764141142733,5.72769985,2945.6,2945.5,0.001]
[1764141142886,5.82743694,2945.6,2945.5,0.001]
[1764141143379,5.42193294,2945.6,2945.5,0.001]
[1764141143580,5.33729585,2945.6,2945.5,0.4611]